lending/lending_fUSD_20240304
["ID","MTS","AMOUNT","RATE_DAILY","PERIOD"]
[316493110,1709511043635,-500.0,0.00021108,2]
[316493111,1709511043644,-500.0,0.00021108,2]
[316493112,1709511043653,-500.0,0.00021108,2]
[316493113,1709511043662,-500.0,0.00021108,2]
[316493114,1709511043671,-500.0,0.00021108,2]
[316493115,1709511043680,-1046.51,0.00021108,2]
[316493116,1709511043689,-500.0,0.00021108,2]
[316493117,1709511043698,-1071.8,0.00021108,2]
[316493118,1709511043706,-437.4,0.00021108,2]
[316493119,1709511043715,-500.0,0.00021108,2]
[316493120,1709511043724,-500.0,0.00021108,2]
[316493121,1709511043734,-621.17,0.00021108,2]
[316493122,1709511043743,-500.0,0.00021108,2]
[316493123,1709511043751,-1957.38,0.00021108,2]
[316493124,1709511043760,-500.0,0.00021108,2]
[316493125,1709511043769,-500.0,0.00021108,2]
[316493126,1709511043778,-612.67,0.00021108,2]
[316493127,1709511043787,-500.0,0.00021108,2]
[316493128,1709511043798,-500.0,0.00021108,2]
[316493129,1709511043806,-500.0,0.00021108,2]
[316493130,1709511043845,-181.81,0.00021108,2]
[316493131,1709511043854,-500.0,0.00021108,2]
[316493132,1709511043863,-500.0,0.00021108,2]
[316493133,1709511043872,-500.0,0.00021108,2]
[316493134,1709511043881,-500.0,0.00021108,2]
[316493135,1709511043890,-500.0,0.00021108,2]
[316493136,1709511043899,-500.0,0.00021108,2]
[316493137,1709511043908,-281.21,0.00021108,2]
[316493138,1709511043917,-500.0,0.00021108,2]
[316493139,1709511043927,-500.0,0.00021108,2]
[316493140,1709511043936,-500.0,0.00021108,2]
[316493141,1709511043945,-733.55907268,0.00021109,2]
[316493142,1709511043954,-500.0,0.00021109,2]
[316493143,1709511043963,-500.0,0.00021109,2]
[316493144,1709511043972,-316.77256538,0.00021109,2]
[316493145,1709511043982,-500.0,0.00021109,2]
[316493146,1709511043991,-500.0,0.00021109,2]
[316493147,1709511044000,-448.88195146,0.00021109,2]
[316493148,1709511044009,-236.52483429,0.00021109,2]
[316493149,1709511044019,-500.0,0.00021109,2]
[316493150,1709511044027,-500.0,0.00021109,2]
[316493151,1709511044037,-151.77954966,0.00021109,2]
[316493152,1709511044047,-500.0,0.00021109,2]
[316493153,1709511044056,-500.0,0.00021109,2]
[316493154,1709511044065,-500.0,0.00021109,2]
[316493155,1709511044074,-500.0,0.00021109,2]
[316493156,1709511044083,-500.0,0.00021109,2]
[316493157,1709511044093,-647.42,0.00021109,2]
[316493158,1709511044101,-500.0,0.00021109,2]
[316493159,1709511044110,-500.0,0.00021109,2]
[316493160,1709511044119,-500.0,0.00021109,2]
[316493161,1709511044128,-187.81,0.00021109,2]
[316493162,1709511044138,-524.2,0.00021109,2]
[316493163,1709511044146,-207.01,0.00021109,2]
[316493164,1709511044155,-500.0,0.00021109,2]
[316493165,1709511044164,-493.06,0.00021109,2]
[316493166,1709511044173,-500.0,0.00021109,2]
[316493167,1709511044182,-566.88,0.00021109,2]
[316493168,1709511044191,-500.0,0.00021109,2]
[316493169,1709511044200,-500.0,0.00021109,2]
[316493170,1709511044209,-255.75,0.00021109,2]
[316493171,1709511044218,-161.92491541,0.00021109,2]
[316493172,1709511044226,-500.0,0.00021109,2]
[316493173,1709511044235,-507.68350611,0.00021109,2]
[316493174,1709511044244,-500.0,0.00021109,2]
[316493175,1709511044253,-414.47,0.00021109,2]
[316493176,1709511044262,-500.0,0.00021109,2]
[316493177,1709511044271,-500.0,0.00021109,2]
[316493178,1709511044281,-500.0,0.00021109,2]
[316493179,1709511044290,-500.0,0.00021109,2]
[316493180,1709511044301,-500.0,0.00021109,2]
[316493181,1709511044310,-270.41,0.00021109,2]
[316493182,1709511044320,-523.7667646,0.00021109,2]
[316493183,1709511044329,-500.0,0.00021109,2]
[316493184,1709511044338,-316.96,0.00021109,2]
[316493185,1709511044347,-500.0,0.00021109,2]
[316493186,1709511044356,-298.33,0.00021109,2]
[316493187,1709511044365,-521.53053923,0.00021109,2]
[316493188,1709511044374,-500.0,0.00021109,2]
[316493189,1709511044383,-500.0,0.00021109,2]
[316493190,1709511044392,-215.44,0.00021109,2]
[316493191,1709511044401,-500.0,0.00021109,2]
[316493192,1709511044410,-500.0,0.00021109,2]
[316493193,1709511044419,-500.0,0.00021109,2]
[316493194,1709511044428,-497.62,0.00021109,2]
[316493195,1709511044437,-599.70177501,0.00021109,2]
[316493196,1709511044446,-500.0,0.00021109,2]
[316493197,1709511044454,-500.0,0.00021109,2]
[316493198,1709511044463,-500.0,0.00021109,2]
[316493199,1709511044472,-500.0,0.00021109,2]
[316493200,1709511044481,-382.68,0.00021109,2]
[316493201,1709511044490,-500.0,0.00021109,2]
[316493202,1709511044502,-500.0,0.00021109,2]
[316493203,1709511044511,-500.0,0.00021109,2]
[316493204,1709511044520,-500.0,0.00021109,2]
[316493205,1709511044529,-500.0,0.00021109,2]
[316493206,1709511044538,-500.0,0.00021109,2]
[316493207,1709511044550,-367.84,0.00021109,2]
[316493208,1709511044559,-212.74,0.00021109,2]
[316493209,1709511044568,-500.0,0.00021109,2]
[316493210,1709511044577,-500.0,0.00021109,2]
[316493211,1709511044588,-408.26,0.00021109,2]
[316493212,1709511044597,-500.0,0.00021109,2]
[316493213,1709511044607,-208.8,0.00021109,2]
[316493214,1709511044616,-500.0,0.00021109,2]
[316493215,1709511044625,-619.27,0.00021109,2]
[316493216,1709511044634,-419.12,0.00021109,2]
[316493217,1709511044644,-500.0,0.00021109,2]
[316493218,1709511044653,-151.27208312,0.00021109,2]
[316493219,1709511044662,-371.71,0.00021109,2]
[316493220,1709511044673,-500.0,0.00021109,2]
[316493221,1709511044682,-323.86,0.00021109,2]
[316493222,1709511044691,-233.16,0.00021109,2]
[316493223,1709511044701,-500.0,0.00021109,2]
[316493224,1709511044711,-500.0,0.00021109,2]
[316493225,1709511044719,-500.0,0.00021109,2]
[316493226,1709511044728,-392.66,0.00021109,2]
[316493227,1709511044737,-514.74,0.00021109,2]
[316493228,1709511044746,-527.64405103,0.00021109,2]
[316493229,1709511044755,-531.61999083,0.00021109,2]
[316493230,1709511044764,-500.0,0.00021109,2]
[316493231,1709511044773,-429.00793944,0.00021109,2]
[316493232,1709511044782,-558.01,0.00021109,2]
[316493233,1709511044791,-500.0,0.00021109,2]
[316493234,1709511044801,-500.0,0.00021109,2]
[316493235,1709511044810,-500.0,0.00021109,2]
[316493236,1709511044819,-500.0,0.00021109,2]
[316493237,1709511044828,-296.74,0.00021109,2]
[316493238,1709511044837,-500.0,0.00021109,2]
[316493239,1709511044846,-500.0,0.00021109,2]
[316493240,1709511044855,-500.0,0.00021109,2]
[316493241,1709511044864,-500.0,0.00021109,2]
[316493242,1709511044873,-500.0,0.00021109,2]
[316493243,1709511044882,-500.0,0.00021109,2]
[316493244,1709511044892,-500.0,0.00021109,2]
[316493245,1709511044901,-500.0,0.00021109,2]
[316493246,1709511044910,-500.0,0.00021109,2]
[316493247,1709511044920,-500.0,0.00021109,2]
[316493248,1709511044929,-500.0,0.00021109,2]
[316493249,1709511044938,-500.0,0.00021109,2]
[316493250,1709511044948,-500.0,0.00021109,2]
[316493251,1709511044957,-500.0,0.00021109,2]
[316493252,1709511044967,-500.0,0.00021109,2]
[316493253,1709511044976,-500.0,0.00021109,2]
[316493254,1709511044985,-500.0,0.00021109,2]
[316493255,1709511044994,-298.81,0.00021109,2]
[316493256,1709511045003,-500.0,0.00021109,2]
[316493257,1709511045012,-516.29897492,0.00021109,2]
[316493258,1709511045022,-500.0,0.00021109,2]
[316493259,1709511045031,-500.0,0.00021109,2]
[316493260,1709511045040,-626.3673433,0.00021109,2]
[316493261,1709511045050,-356.22,0.00021109,2]
[316493262,1709511045059,-494.84,0.00021109,2]
[316493263,1709511045069,-500.6521897,0.00021109,2]
[316493264,1709511045078,-500.0,0.00021109,2]
[316493265,1709511045087,-366.06,0.00021109,2]
[316493266,1709511045096,-285.9,0.00021109,2]
[316493267,1709511045105,-202.19,0.00021109,2]
[316493268,1709511045114,-503.34473253,0.00021109,2]
[316493269,1709511045123,-210.03,0.00021109,2]
[316493270,1709511045132,-500.0,0.00021109,2]
[316493271,1709511045141,-447.37008475,0.00021109,2]
[316493272,1709511045150,-500.0,0.00021109,2]
[316493273,1709511045159,-6997.30064129,0.00021109,2]
[316493274,1709511045168,-377.87,0.00021109,2]
[316493275,1709511045177,-355.17,0.00021109,2]
[316493276,1709511045186,-500.0,0.00021109,2]
[316493277,1709511045196,-169.26,0.00021109,2]
[316493278,1709511045205,-500.0,0.00021109,2]
[316493279,1709511045214,-416.31,0.00021109,2]
[316493280,1709511045223,-316.39,0.00021109,2]
[316493281,1709511045232,-500.0,0.00021109,2]
[316493282,1709511045241,-500.0,0.00021109,2]
[316493283,1709511045250,-500.0,0.00021109,2]
[316493284,1709511045259,-500.0,0.00021109,2]
[316493285,1709511045268,-386.7,0.00021109,2]
[316493286,1709511045277,-411.63,0.00021109,2]
[316493287,1709511045286,-189.87,0.00021109,2]
[316493288,1709511045295,-429.58,0.00021109,2]
[316493289,1709511045304,-265.8,0.00021109,2]
[316493290,1709511045314,-343.15,0.00021109,2]
[316493291,1709511045324,-500.0,0.00021109,2]
[316493292,1709511045333,-500.0,0.00021109,2]
[316493293,1709511045342,-500.0,0.00021109,2]
[316493294,1709511045351,-552.71,0.00021109,2]
[316493295,1709511045360,-640.79,0.00021109,2]
[316493296,1709511045369,-207.81,0.00021109,2]
[316493297,1709511045378,-500.0,0.00021109,2]
[316493298,1709511045387,-500.0,0.00021109,2]
[316493299,1709511045396,-295.38,0.00021109,2]
[316493300,1709511045405,-440.19,0.00021109,2]
[316493301,1709511045414,-500.0,0.00021109,2]
[316493302,1709511045423,-195.56,0.00021109,2]
[316493303,1709511045432,-404.89,0.00021109,2]
[316493304,1709511045441,-220.83,0.00021109,2]
[316493305,1709511045450,-500.0,0.00021109,2]
[316493306,1709511045459,-619.34,0.00021109,2]
[316493307,1709511045468,-346.59,0.00021109,2]
[316493308,1709511045477,-208.18,0.00021109,2]
[316493309,1709511045487,-627.24,0.00021109,2]
[316493310,1709511045497,-500.0,0.00021109,2]
[316493311,1709511045506,-500.0,0.00021109,2]
[316493312,1709511045519,-151.97,0.00021109,2]
[316493313,1709511045528,-500.0,0.00021109,2]
[316493314,1709511045537,-158.48,0.00021109,2]
[316493316,1709511045548,-518.99,0.00021109,2]
[316493317,1709511045557,-193.05,0.00021109,2]
[316493319,1709511045565,-500.0,0.00021109,2]
[316493320,1709511045574,-500.0,0.00021109,2]
[316493321,1709511045583,-500.0,0.00021109,2]
[316493322,1709511045593,-558.58,0.00021109,2]
[316493323,1709511045603,-500.0,0.00021109,2]
[316493324,1709511045613,-614.35,0.00021109,2]
[316493325,1709511045623,-301.29455786,0.00021109,2]
[316493326,1709511045632,-219.27,0.00021109,2]
[316493327,1709511045642,-192.66,0.00021109,2]
[316493328,1709511045651,-181.81,0.00021109,2]
[316493329,1709511045661,-221.75,0.00021109,2]
[316493330,1709511045671,-205.6,0.00021109,2]
[316493331,1709511045681,-383.34,0.00021109,2]
[316493332,1709511045691,-340.74,0.00021109,2]
[316493333,1709511045701,-585.84,0.00021109,2]
[316493334,1709511045711,-510.02,0.00021109,2]
[316493335,1709511045720,-500.0,0.00021109,2]
[316493336,1709511045729,-500.0,0.00021133,2]
[316493337,1709511045738,-500.0,0.00021133,2]
[316493338,1709511045748,-274.8,0.00021133,2]
[316493339,1709511045757,-500.0,0.00021133,2]
[316493340,1709511045766,-476.0,0.00021133,2]
[316493341,1709511045776,-637.9,0.00021133,2]
[316493342,1709511045786,-238.22,0.00021133,2]
[316493343,1709511045800,-242.92,0.00021133,2]
[316493344,1709511045810,-220.68,0.00021133,2]
[316493345,1709511045822,-613.34,0.00021133,2]
[316493346,1709511045833,-500.0,0.00021133,2]
[316493347,1709511045844,-500.0,0.00021133,2]
[316493348,1709511045854,-416.3,0.00021133,2]
[316493349,1709511045864,-500.0,0.00021133,2]
[316493350,1709511045874,-342.32,0.00021133,2]
[316493351,1709511045884,-190.64,0.00021133,2]
[316493352,1709511045894,-500.0,0.00021133,2]
[316493353,1709511046065,-268.07,0.00021133,2]
[316493354,1709511046077,-500.0,0.00021133,2]
[316493355,1709511046088,-500.0,0.00021133,2]
[316493356,1709511046100,-500.0,0.00021133,2]
[316493357,1709511046111,-500.0,0.00021133,2]
[316493358,1709511046121,-500.0,0.00021133,2]
[316493359,1709511046131,-500.0,0.00021133,2]
[316493360,1709511046141,-500.0,0.00021133,2]
[316493362,1709511046152,-500.0,0.00021133,2]
[316493364,1709511046162,-500.0,0.00021133,2]
[316493367,1709511046172,-1063.82,0.00021133,2]
[316493369,1709511046182,-500.0,0.00021133,2]
[316493370,1709511046191,-347.36,0.00021133,2]
[316493373,1709511046201,-500.0,0.00021133,2]
[316493374,1709511046211,-500.0,0.00021133,2]
[316493377,1709511046221,-500.0,0.00021133,2]
[316493379,1709511046230,-202.13,0.00021133,2]
[316493380,1709511046240,-500.0,0.00021133,2]
[316493381,1709511046249,-628.38,0.00021133,2]
[316493382,1709511046259,-500.0,0.00021133,2]
[316493383,1709511046269,-500.0,0.00021134,2]
[316493384,1709511046279,-500.0,0.00021134,2]
[316493385,1709511046288,-355.87,0.00021148,2]
[316493386,1709511046304,-514.11,0.00021175,2]
[316493387,1709511046314,-150.78,0.00021196,2]
[316493388,1709511046323,-500.0,0.00021217,2]
[316493389,1709511046333,-268.39,0.00021217,2]
[316493390,1709511046342,-500.0,0.00021217,2]
[316493391,1709511046351,-500.0,0.00021217,2]
[316493392,1709511046361,-500.0,0.00021217,2]
[316493393,1709511046371,-500.0,0.00021217,2]
[316493394,1709511046380,-500.0,0.00021217,2]
[316493395,1709511046389,-500.0,0.00021217,2]
[316493396,1709511046399,-500.0,0.00021217,2]
[316493397,1709511046409,-500.0,0.00021217,2]
[316493398,1709511046418,-500.0,0.00021217,2]
[316493399,1709511046427,-500.0,0.00021217,2]
[316493400,1709511046436,-500.0,0.00021217,2]
[316493401,1709511046445,-603.89,0.00021217,2]
[316493402,1709511046454,-500.0,0.00021217,2]
[316493403,1709511046464,-757.65,0.00021217,2]
[316493404,1709511046473,-573.42,0.00021217,2]
[316493405,1709511046482,-626.56,0.00021217,2]
[316493406,1709511046492,-500.0,0.00021217,2]
[316493407,1709511046504,-500.0,0.00021217,2]
[316493408,1709511046513,-500.0,0.00021217,2]
[316493409,1709511046523,-500.0,0.00021217,2]
[316493410,1709511046532,-500.0,0.00021217,2]
[316493411,1709511046542,-500.0,0.00021217,2]
[316493412,1709511046553,-173.19,0.00021217,2]
[316493413,1709511046562,-436.64,0.00021217,2]
[316493414,1709511046572,-231.41,0.00021217,2]
[316493415,1709511046581,-500.0,0.00021217,2]
[316493416,1709511046590,-500.0,0.00021217,2]
[316493417,1709511046600,-500.0,0.00021217,2]
[316493418,1709511046609,-500.0,0.00021217,2]
[316493419,1709511046618,-1046.51,0.00021217,2]
[316493420,1709511046627,-500.0,0.00021217,2]
[316493421,1709511046637,-1071.8,0.00021217,2]
[316493422,1709511046646,-500.0,0.00021217,2]
[316493423,1709511046655,-500.0,0.00021217,2]
[316493424,1709511046664,-500.0,0.00021217,2]
[316493425,1709511046673,-1957.38,0.00021217,2]
[316493426,1709511046682,-500.0,0.00021217,2]
[316493427,1709511046691,-500.0,0.00021217,2]
[316493428,1709511046701,-500.0,0.00021217,2]
[316493429,1709511046710,-500.0,0.00021217,2]
[316493430,1709511046720,-250.14,0.00021217,2]
[316493431,1709511046731,-500.0,0.00021217,2]
[316493432,1709511046741,-583.14,0.00021217,2]
[316493433,1709511046750,-500.0,0.00021217,2]
[316493434,1709511046760,-500.0,0.00021217,2]
[316493435,1709511046770,-500.0,0.00021217,2]
[316493436,1709511046779,-189.75,0.00021217,2]
[316493437,1709511046788,-500.0,0.00021218,2]
[316493438,1709511046800,-500.0,0.00021218,2]
[316493439,1709511046810,-500.0,0.00021218,2]
[316493440,1709511046820,-267.6244784,0.00021218,2]
[316493441,1709511046829,-224.52,0.00021218,2]
[316493442,1709511046838,-178.56,0.00021218,2]
[316493443,1709511046847,-170.27,0.00021218,2]
[316493444,1709511046857,-357.05,0.00021218,2]
[316493445,1709511046867,-329.28,0.00021218,2]
[316493446,1709511046877,-496.11,0.00021218,2]
[316493447,1709511046888,-158.42,0.00021218,2]
[316493448,1709511046897,-392.02,0.00021218,2]
[316493449,1709511046907,-561.1,0.00021218,2]
[316493450,1709511046917,-488.5,0.00021218,2]
[316493451,1709511046926,-500.0,0.00021218,2]
[316493452,1709511046936,-228.84,0.00021218,2]
[316493453,1709511046945,-491.3,0.00021218,2]
[316493454,1709511046955,-392.6,0.00021218,2]
[316493455,1709511046965,-303.54,0.00021218,2]
[316493456,1709511046974,-500.0,0.00021218,2]
[316493457,1709511046984,-500.0,0.00021218,2]
[316493458,1709511046993,-247.04,0.00021218,2]
[316493459,1709511047003,-155.94,0.00021218,2]
[316493460,1709511047012,-500.0,0.00021218,2]
[316493461,1709511047021,-322.98,0.00021218,2]
[316493462,1709511047030,-337.59,0.00021218,2]
[316493463,1709511047039,-500.0,0.00021218,2]
[316493464,1709511047049,-500.0,0.00021218,2]
[316493465,1709511047059,-216.06907473,0.00021218,2]
[316493466,1709511047068,-640.79,0.00021218,2]
[316493467,1709511047077,-437.17,0.00021218,2]
[316493468,1709511047086,-293.44,0.00021218,2]
[316493469,1709511047096,-500.0,0.00021218,2]
[316493470,1709511047105,-263.01,0.00021218,2]
[316493471,1709511047115,-366.19,0.00021218,2]
[316493472,1709511047125,-439.2,0.00021218,2]
[316493473,1709511047134,-152.78,0.00021218,2]
[316493474,1709511047144,-231.01,0.00021218,2]
[316493475,1709511047155,-500.0,0.00021218,2]
[316493476,1709511047164,-286.21,0.00021218,2]
[316493477,1709511047174,-380.33,0.00021218,2]
[316493478,1709511047183,-215.52,0.00021218,2]
[316493479,1709511047192,-500.0,0.00021243,2]
[316493480,1709511047201,-247.22,0.00021243,2]
[316493481,1709511047210,-500.0,0.00021243,2]
[316493482,1709511047219,-572.94,0.00021243,2]
[316493483,1709511047229,-500.0,0.00021243,2]
[316493484,1709511047238,-332.32,0.00021243,2]
[316493485,1709511047247,-500.0,0.00021243,2]
[316493486,1709511047256,-176.4,0.00021243,2]
[316493487,1709511047265,-500.0,0.00021243,2]
[316493488,1709511047275,-500.0,0.00021243,2]
[316493489,1709511047284,-500.0,0.00021243,2]
[316493490,1709511047293,-500.0,0.00021243,2]
[316493491,1709511047302,-500.0,0.00021243,2]
[316493492,1709511047312,-500.0,0.00021243,2]
[316493493,1709511047321,-500.0,0.00021243,2]
[316493494,1709511047331,-500.0,0.00021243,2]
[316493495,1709511047341,-1063.82,0.00021243,2]
[316493496,1709511047350,-557.52,0.00021243,2]
[316493497,1709511047360,-622.43991206,0.00021243,2]
[316493498,1709511047370,-348.02,0.00021243,2]
[316493499,1709511047379,-500.0,0.00021243,2]
[316493500,1709511047388,-500.0,0.00021243,2]
[316493501,1709511047398,-500.0,0.00021243,2]
[316493502,1709511047408,-374.21,0.00021244,2]
[316493503,1709511047418,-150.78,0.00021316,2]
[316493504,1709511047427,-500.0,0.00021327,2]
[316493505,1709511047437,-239.12,0.00021327,2]
[316493506,1709511047447,-481.1,0.00021327,2]
[316493507,1709511047456,-332.21,0.00021327,2]
[316493508,1709511047465,-500.0,0.00021327,2]
[316493509,1709511047475,-500.0,0.00021327,2]
[316493510,1709511047484,-500.0,0.00021327,2]
[316493511,1709511047494,-500.0,0.00021327,2]
[316493512,1709511047504,-500.0,0.00021327,2]
[316493513,1709511047513,-500.0,0.00021327,2]
[316493514,1709511047527,-500.0,0.00021327,2]
[316493515,1709511047536,-500.0,0.00021327,2]
[316493516,1709511047548,-603.89,0.00021327,2]
[316493517,1709511047557,-500.0,0.00021327,2]
[316493518,1709511047567,-757.65,0.00021327,2]
[316493519,1709511047577,-409.73,0.00021327,2]
[316493520,1709511047586,-500.0,0.00021327,2]
[316493521,1709511047596,-461.92,0.00021327,2]
[316493522,1709511047606,-500.0,0.00021327,2]
[316493523,1709511047615,-514.22,0.00021327,2]
[316493524,1709511047624,-500.0,0.00021327,2]
[316493525,1709511047634,-316.07,0.00021327,2]
[316493526,1709511047643,-500.0,0.00021327,2]
[316493527,1709511047652,-500.0,0.00021327,2]
[316493528,1709511047662,-1046.51,0.00021327,2]
[316493529,1709511047672,-500.0,0.00021327,2]
[316493530,1709511047681,-1071.8,0.00021327,2]
[316493531,1709511047690,-500.0,0.00021327,2]
[316493532,1709511047699,-500.0,0.00021327,2]
[316493533,1709511047709,-512.66,0.00021327,2]
[316493534,1709511047718,-1957.38,0.00021327,2]
[316493535,1709511047728,-500.0,0.00021327,2]
[316493536,1709511047737,-500.0,0.00021327,2]
[316493537,1709511047746,-500.0,0.00021327,2]
[316493538,1709511047755,-500.0,0.00021327,2]
[316493539,1709511047764,-257.32,0.00021327,2]
[316493540,1709511047774,-500.0,0.00021327,2]
[316493541,1709511047783,-500.0,0.00021327,2]
[316493542,1709511047793,-500.0,0.00021327,2]
[316493543,1709511047802,-388.83,0.00021328,2]
[316493544,1709511047811,-153.53,0.00021328,2]
[316493545,1709511047821,-500.0,0.00021328,2]
[316493546,1709511047830,-206.07,0.00021328,2]
[316493547,1709511047840,-230.41,0.00021328,2]
[316493548,1709511047849,-500.0,0.00021328,2]
[316493549,1709511047859,-640.79,0.00021328,2]
[316493550,1709511047868,-500.0,0.00021328,2]
[316493551,1709511047878,-500.0,0.00021328,2]
[316493552,1709511047888,-202.498311,0.00021341,2]
[316493553,1709511047897,-488.86,0.00021353,2]
[316493554,1709511047907,-184.52,0.00021353,2]
[316493555,1709511047917,-257.72,0.00021353,2]
[316493556,1709511047928,-305.54,0.00021353,2]
[316493557,1709511047938,-500.0,0.00021353,2]
[316493558,1709511047947,-500.0,0.00021353,2]
[316493559,1709511047957,-500.0,0.00021353,2]
[316493560,1709511047966,-500.0,0.00021353,2]
[316493561,1709511047975,-500.0,0.00021353,2]
[316493562,1709511047985,-500.0,0.00021353,2]
[316493563,1709511047994,-500.0,0.00021353,2]
[316493564,1709511048004,-500.0,0.00021353,2]
[316493565,1709511048013,-1063.82,0.00021353,2]
[316493566,1709511048023,-590.49,0.00021353,2]
[316493567,1709511048033,-500.0,0.00021353,2]
[316493568,1709511048044,-500.0,0.00021353,2]
[316493569,1709511048054,-1904.5,0.0002137,2]
[316493570,1709511048063,-179.44,0.00021394,2]
[316493571,1709511048073,-157.90575696,0.000214,2]
[316493572,1709511048082,-150.78,0.00021436,2]
[316493573,1709511048092,-192.41,0.00021436,2]
[316493574,1709511048101,-500.0,0.00021436,2]
[316493575,1709511048110,-500.0,0.00021436,2]
[316493576,1709511048120,-500.0,0.00021436,2]
[316493577,1709511048129,-500.0,0.00021436,2]
[316493578,1709511048139,-500.0,0.00021436,2]
[316493579,1709511048149,-500.0,0.00021436,2]
[316493580,1709511048158,-500.0,0.00021436,2]
[316493581,1709511048167,-500.0,0.00021436,2]
[316493582,1709511048176,-603.89,0.00021436,2]
[316493583,1709511048185,-500.0,0.00021436,2]
[316493584,1709511048195,-757.65,0.00021436,2]
[316493585,1709511048205,-159.55,0.00021436,2]
[316493586,1709511048214,-500.0,0.00021436,2]
[316493587,1709511048224,-500.0,0.00021436,2]
[316493588,1709511048233,-500.0,0.00021436,2]
[316493589,1709511048243,-500.0,0.00021436,2]
[316493590,1709511048252,-1046.51,0.00021436,2]
[316493591,1709511048261,-151.18,0.00021436,2]
[316493592,1709511048271,-1071.8,0.00021436,2]
[316493593,1709511048281,-575.72,0.00021436,2]
[316493594,1709511048290,-500.0,0.00021436,2]
[316493595,1709511048302,-1957.38,0.00021436,2]
[316493596,1709511048311,-500.0,0.00021436,2]
[316493597,1709511048320,-500.0,0.00021436,2]
[316493598,1709511048330,-500.0,0.00021436,2]
[316493599,1709511048339,-500.0,0.00021436,2]
[316493600,1709511048348,-500.0,0.00021436,2]
[316493601,1709511048357,-500.0,0.00021436,2]
[316493602,1709511048366,-500.0,0.00021436,2]
[316493603,1709511048376,-546.16322258,0.00021438,2]
[316493604,1709511048385,-500.0,0.00021438,2]
[316493605,1709511048394,-640.79,0.00021438,2]
[316493606,1709511048403,-500.0,0.00021438,2]
[316493607,1709511048412,-448.66081276,0.00021438,2]
[316493608,1709511048422,-501.1780949,0.00021453,2]
[316493609,1709511048431,-709363.96994277,0.00021462,4]
[316493610,1709511048440,-198.00211535,0.00021462,2]
[316493611,1709511048450,-195.07011735,0.00021462,2]
[316493612,1709511048458,-500.0,0.00021462,2]
[316493613,1709511048468,-500.0,0.00021462,2]
[316493614,1709511048477,-436.89,0.00021462,2]
[316493615,1709511048486,-500.0,0.00021462,2]
[316493616,1709511048495,-150.56,0.00021462,2]
[316493617,1709511048509,-500.0,0.00021462,2]
[316493618,1709511048518,-500.0,0.00021462,2]
[316493619,1709511048528,-336.91,0.00021462,2]
[316493620,1709511048537,-1063.82,0.00021462,2]
[316493621,1709511048548,-500.0,0.00021462,2]